[Event "Titled Tuesday Blitz June 14 Early 2022"]
[White "Babazada, Khazar"]
[Black "Rozman, Levy"]
[WhiteFideId "13413554"]
[BlackFideId "2039877"]
[WhiteElo "2406"]
[BlackElo "2376"]
[Result "1-0"]
[Round "05"]
[TimeControl "180+1"]
[Date "2022.06.14"]
[WhiteClock "0:01:10"]
[BlackClock "0:00:15"]

1. e4 {[%clk 0:02:56]}  d5 {[%clk 0:02:58]} 2. exd5 {[%clk 0:02:56]}  Nf6 {[%clk 0:02:59]} 3. Nc3 {[%clk 0:02:55]}  Nxd5 {[%clk 0:02:59]} 4. Nf3 {[%clk 0:02:55]}  Nxc3 {[%clk 0:02:59]} 5. bxc3 {[%clk 0:02:55]}  g6 {[%clk 0:02:59]} 6. d4 {[%clk 0:02:56]}  Bg7 {[%clk 0:02:59]} 7. Bc4 {[%clk 0:02:52]}  O-O {[%clk 0:02:59]} 8. O-O {[%clk 0:02:51]}  c5 {[%clk 0:02:56]} 9. h3 {[%clk 0:02:41]}  Nc6 {[%clk 0:02:54]} 10. Be3 {[%clk 0:02:41]}  Qa5 {[%clk 0:02:49]} 11. Qe1 {[%clk 0:02:14]}  Bf5 {[%clk 0:02:30]} 12. Rb1 {[%clk 0:02:13]}  Qc7 {[%clk 0:02:23]} 13. Qe2 {[%clk 0:02:00]}  Be4 {[%clk 0:02:15]} 14. Ng5 {[%clk 0:01:55]}  Bf5 {[%clk 0:01:47]} 15. Rb5 {[%clk 0:01:56]}  cxd4 {[%clk 0:01:20]} 16. Rxf5 {[%clk 0:01:55]}  dxe3 {[%clk 0:01:13]} 17. Rxf7 {[%clk 0:01:28]}  Rxf7 {[%clk 0:00:52]} 18. Bxf7+ {[%clk 0:01:29]}  Kh8 {[%clk 0:00:52]} 19. Bb3 {[%clk 0:01:30]}  h6 {[%clk 0:00:48]} 20. Ne6 {[%clk 0:01:27]}  Qe5 {[%clk 0:00:44]} 21. fxe3 {[%clk 0:01:26]}  Na5 {[%clk 0:00:36]} 22. Nf4 {[%clk 0:01:25]}  Qd6 {[%clk 0:00:27]} 23. Bf7 {[%clk 0:01:22]}  g5 {[%clk 0:00:14]} 24. Ng6+ {[%clk 0:01:09]}  Kh7 {[%clk 0:00:15]} 25. Qf3 {[%clk 0:01:10]} 1-0


[Site "https://www.chess.com"]

[Event "Titled Tuesday Blitz June 14 Early 2022"]
[White "De Silva, L M S T"]
[Black "Morefield, Jason"]
[WhiteFideId "9953698"]
[BlackFideId "30920825"]
[WhiteElo "1631"]
[BlackElo "2171"]
[Result "1-0"]
[Round "05"]
[TimeControl "180+1"]
[Date "2022.06.14"]
[WhiteClock "0:00:35"]
[BlackClock "0:00:04"]

1. e4 {[%clk 0:03:00]}  d6 {[%clk 0:02:59]} 2. d4 {[%clk 0:03:01]}  Nf6 {[%clk 0:02:59]} 3. Bd3 {[%clk 0:03:00]}  e5 {[%clk 0:02:59]} 4. c3 {[%clk 0:02:59]}  g6 {[%clk 0:02:59]} 5. Nf3 {[%clk 0:02:59]}  Bg7 {[%clk 0:02:59]} 6. dxe5 {[%clk 0:02:59]}  dxe5 {[%clk 0:03:00]} 7. O-O {[%clk 0:02:59]}  Nbd7 {[%clk 0:03:00]} 8. Bc2 {[%clk 0:02:55]}  O-O {[%clk 0:02:58]} 9. Qe2 {[%clk 0:02:55]}  Qe7 {[%clk 0:02:56]} 10. a4 {[%clk 0:02:55]}  a5 {[%clk 0:02:49]} 11. Rd1 {[%clk 0:02:53]}  b6 {[%clk 0:02:39]} 12. Na3 {[%clk 0:02:52]}  Nc5 {[%clk 0:02:34]} 13. Bg5 {[%clk 0:02:43]}  Ne6 {[%clk 0:02:30]} 14. Be3 {[%clk 0:02:41]}  Ng4 {[%clk 0:02:19]} 15. Bc1 {[%clk 0:02:30]}  Nf4 {[%clk 0:02:14]} 16. Bxf4 {[%clk 0:02:29]}  exf4 {[%clk 0:02:15]} 17. Bb3 {[%clk 0:02:26]}  Bb7 {[%clk 0:02:03]} 18. Bd5 {[%clk 0:02:25]}  c6 {[%clk 0:02:04]} 19. Bb3 {[%clk 0:02:22]}  Kh8 {[%clk 0:01:49]} 20. h3 {[%clk 0:02:21]}  Ne5 {[%clk 0:01:49]} 21. Nxe5 {[%clk 0:02:20]}  Bxe5 {[%clk 0:01:50]} 22. Nc4 {[%clk 0:02:20]}  Bc7 {[%clk 0:01:49]} 23. e5 {[%clk 0:02:16]}  Rad8 {[%clk 0:01:35]} 24. Qf3 {[%clk 0:02:01]}  Bxe5 {[%clk 0:01:11]} 25. Nxb6 {[%clk 0:01:49]}  Qc7 {[%clk 0:00:53]} 26. Nc4 {[%clk 0:01:44]}  c5 {[%clk 0:00:52]} 27. Qe2 {[%clk 0:01:15]}  Rxd1+ {[%clk 0:00:49]} 28. Rxd1 {[%clk 0:01:14]}  Re8 {[%clk 0:00:48]} 29. Nd6 {[%clk 0:01:03]}  f3 {[%clk 0:00:25]} 30. Qb5 {[%clk 0:01:02]}  Re7 {[%clk 0:00:17]} 31. Nxf7+ {[%clk 0:00:50]}  Rxf7 {[%clk 0:00:12]} 32. Qe8+ {[%clk 0:00:50]}  Kg7 {[%clk 0:00:11]} 33. Qxf7+ {[%clk 0:00:50]}  Qxf7 {[%clk 0:00:10]} 34. Bxf7 {[%clk 0:00:51]}  fxg2 {[%clk 0:00:04]} 35. Bd5 {[%clk 0:00:51]}  Bc8 {[%clk 0:00:04]} 36. Kxg2 {[%clk 0:00:51]}  Bf5 {[%clk 0:00:04]} 37. Bc6 {[%clk 0:00:49]}  Kf6 {[%clk 0:00:03]} 38. f3 {[%clk 0:00:45]}  Bc2 {[%clk 0:00:03]} 39. Rd2 {[%clk 0:00:44]}  Bb3 {[%clk 0:00:03]} 40. Rd7 {[%clk 0:00:41]}  h5 {[%clk 0:00:03]} 41. Ra7 {[%clk 0:00:41]}  Bf4 {[%clk 0:00:03]} 42. Rxa5 {[%clk 0:00:40]}  c4 {[%clk 0:00:03]} 43. Rd5 {[%clk 0:00:38]}  Bc1 {[%clk 0:00:04]} 44. a5 {[%clk 0:00:35]}  Bxb2 {[%clk 0:00:04]} 45. a6 {[%clk 0:00:36]}  Bxc3 {[%clk 0:00:05]} 46. a7 {[%clk 0:00:35]}  Be5 {[%clk 0:00:06]} 47. a8=Q {[%clk 0:00:35]}  c3 {[%clk 0:00:06]} 48. Qf8+ {[%clk 0:00:35]}  Kg5 {[%clk 0:00:04]} 49. Rxe5+ {[%clk 0:00:35]}  Kh4 {[%clk 0:00:04]} 50. Qf4# {[%clk 0:00:35]} 1-0


[Site "https://www.chess.com"]

[Event "Titled Tuesday Blitz June 14 Early 2022"]
[White "Dubov, Daniil"]
[Black "Beerdsen, Thomas"]
[WhiteFideId "24126055"]
[BlackFideId "1030108"]
[WhiteElo "2791"]
[BlackElo "2585"]
[Result "1-0"]
[Round "05"]
[TimeControl "180+1"]
[Date "2022.06.14"]
[WhiteClock "0:01:29"]
[BlackClock "0:00:51"]

1. c4 {[%clk 0:03:00]}  g5 {[%clk 0:03:00]} 2. Nc3 {[%clk 0:02:59]}  Bg7 {[%clk 0:02:59]} 3. d4 {[%clk 0:02:58]}  g4 {[%clk 0:02:58]} 4. e4 {[%clk 0:02:53]}  h5 {[%clk 0:02:56]} 5. Be3 {[%clk 0:02:50]}  c5 {[%clk 0:02:55]} 6. dxc5 {[%clk 0:02:44]}  Nc6 {[%clk 0:02:53]} 7. Nge2 {[%clk 0:02:42]}  h4 {[%clk 0:02:17]} 8. Qd2 {[%clk 0:02:32]}  Nf6 {[%clk 0:02:12]} 9. Nd4 {[%clk 0:02:24]}  Nxd4 {[%clk 0:02:01]} 10. Bxd4 {[%clk 0:02:11]}  Qa5 {[%clk 0:01:51]} 11. e5 {[%clk 0:02:02]}  Nh5 {[%clk 0:01:40]} 12. Be2 {[%clk 0:02:01]}  d6 {[%clk 0:01:27]} 13. exd6 {[%clk 0:01:51]}  e5 {[%clk 0:01:28]} 14. Be3 {[%clk 0:01:50]}  f5 {[%clk 0:01:20]} 15. Nd5 {[%clk 0:01:45]}  Qxd2+ {[%clk 0:01:14]} 16. Bxd2 {[%clk 0:01:45]}  O-O {[%clk 0:01:13]} 17. h3 {[%clk 0:01:39]}  Nf6 {[%clk 0:00:56]} 18. hxg4 {[%clk 0:01:31]}  Nxd5 {[%clk 0:00:50]} 19. cxd5 {[%clk 0:01:30]}  fxg4 {[%clk 0:00:51]} 20. Rxh4 {[%clk 0:01:29]} 1-0


[Site "https://www.chess.com"]

[Event "Titled Tuesday Blitz June 14 Early 2022"]
[White "Durarbayli, Vasif"]
[Black "Dimitrov, Atanas"]
[WhiteFideId "13402935"]
[BlackFideId "2901315"]
[WhiteElo "2528"]
[BlackElo "2731"]
[Result "1-0"]
[Round "05"]
[TimeControl "180+1"]
[Date "2022.06.14"]
[WhiteClock "0:00:04"]
[BlackClock "0:00:02"]

1. e4 {[%clk 0:03:00]}  c5 {[%clk 0:02:59]} 2. Nf3 {[%clk 0:03:00]}  d6 {[%clk 0:03:00]} 3. Bb5+ {[%clk 0:03:00]}  Bd7 {[%clk 0:03:00]} 4. a4 {[%clk 0:03:00]}  Nf6 {[%clk 0:02:58]} 5. Qe2 {[%clk 0:02:59]}  e6 {[%clk 0:02:58]} 6. O-O {[%clk 0:02:59]}  Be7 {[%clk 0:02:58]} 7. d4 {[%clk 0:02:59]}  cxd4 {[%clk 0:02:58]} 8. Nxd4 {[%clk 0:03:00]}  O-O {[%clk 0:02:59]} 9. Nc3 {[%clk 0:02:59]}  a6 {[%clk 0:02:58]} 10. Bd3 {[%clk 0:02:57]}  Nc6 {[%clk 0:02:58]} 11. Nxc6 {[%clk 0:02:55]}  Bxc6 {[%clk 0:02:58]} 12. f4 {[%clk 0:02:49]}  e5 {[%clk 0:02:47]} 13. Kh1 {[%clk 0:02:47]}  Re8 {[%clk 0:02:41]} 14. fxe5 {[%clk 0:02:19]}  dxe5 {[%clk 0:02:42]} 15. Bc4 {[%clk 0:02:20]}  Rc8 {[%clk 0:02:00]} 16. Bg5 {[%clk 0:02:13]}  Rf8 {[%clk 0:01:15]} 17. Rad1 {[%clk 0:01:15]}  Nd7 {[%clk 0:01:15]} 18. Be3 {[%clk 0:01:07]}  Qe8 {[%clk 0:01:07]} 19. Qh5 {[%clk 0:01:02]}  Nf6 {[%clk 0:01:04]} 20. Qxe5 {[%clk 0:00:52]}  Bb4 {[%clk 0:00:42]} 21. Qg3 {[%clk 0:00:23]}  Bxc3 {[%clk 0:00:38]} 22. bxc3 {[%clk 0:00:23]}  Nxe4 {[%clk 0:00:36]} 23. Qh3 {[%clk 0:00:22]}  Kh8 {[%clk 0:00:19]} 24. Bd4 {[%clk 0:00:13]}  f6 {[%clk 0:00:16]} 25. Rde1 {[%clk 0:00:11]}  Qg6 {[%clk 0:00:16]} 26. Bd3 {[%clk 0:00:11]}  f5 {[%clk 0:00:15]} 27. Rf4 {[%clk 0:00:05]}  Rce8 {[%clk 0:00:11]} 28. Ref1 {[%clk 0:00:05]}  h6 {[%clk 0:00:07]} 29. Kg1 {[%clk 0:00:05]}  Nd2 {[%clk 0:00:05]} 30. Rxf5 {[%clk 0:00:04]}  Rxf5 {[%clk 0:00:03]} 31. Rxf5 {[%clk 0:00:04]}  Qe6 {[%clk 0:00:03]} 32. Rf8+ {[%clk 0:00:03]}  Rxf8 {[%clk 0:00:03]} 33. Qxe6 {[%clk 0:00:03]}  Be4 {[%clk 0:00:02]} 34. Qxh6+ {[%clk 0:00:03]}  Kg8 {[%clk 0:00:02]} 35. Qxg7# {[%clk 0:00:04]} 1-0


[Site "https://www.chess.com"]

[Event "Titled Tuesday Blitz June 14 Early 2022"]
[White "Fedoseev, Vladimir"]
[Black "Daneshvar, Bardiya"]
[WhiteFideId "24130737"]
[BlackFideId "12576468"]
[WhiteElo "2726"]
[BlackElo "2303"]
[Result "1-0"]
[Round "05"]
[TimeControl "180+1"]
[Date "2022.06.14"]
[WhiteClock "0:00:05"]
[BlackClock "0:00:02"]

1. e4 {[%clk 0:02:40]}  c6 {[%clk 0:02:58]} 2. d4 {[%clk 0:02:39]}  d5 {[%clk 0:02:58]} 3. e5 {[%clk 0:02:39]}  Bf5 {[%clk 0:02:58]} 4. Nf3 {[%clk 0:02:40]}  e6 {[%clk 0:02:58]} 5. Be2 {[%clk 0:02:40]}  c5 {[%clk 0:02:58]} 6. c3 {[%clk 0:02:41]}  Nc6 {[%clk 0:02:54]} 7. O-O {[%clk 0:02:40]}  cxd4 {[%clk 0:02:54]} 8. cxd4 {[%clk 0:02:39]}  Nge7 {[%clk 0:02:52]} 9. Nc3 {[%clk 0:02:38]}  Bg6 {[%clk 0:02:50]} 10. Nh4 {[%clk 0:02:32]}  Nf5 {[%clk 0:02:49]} 11. Nxf5 {[%clk 0:02:31]}  Bxf5 {[%clk 0:02:48]} 12. Be3 {[%clk 0:02:32]}  Bb4 {[%clk 0:02:37]} 13. Na4 {[%clk 0:02:08]}  O-O {[%clk 0:02:20]} 14. Rc1 {[%clk 0:02:06]}  f6 {[%clk 0:02:13]} 15. exf6 {[%clk 0:02:00]}  Qxf6 {[%clk 0:02:11]} 16. Bb5 {[%clk 0:01:54]}  Rac8 {[%clk 0:02:03]} 17. Nc5 {[%clk 0:01:42]}  Bxc5 {[%clk 0:01:48]} 18. Rxc5 {[%clk 0:01:43]}  Qg6 {[%clk 0:01:39]} 19. Kh1 {[%clk 0:01:08]}  Nb4 {[%clk 0:01:30]} 20. Qd2 {[%clk 0:01:00]}  Rxc5 {[%clk 0:01:21]} 21. dxc5 {[%clk 0:00:58]}  Nc6 {[%clk 0:01:20]} 22. Bxc6 {[%clk 0:00:57]}  bxc6 {[%clk 0:01:21]} 23. Bd4 {[%clk 0:00:56]}  Bd3 {[%clk 0:01:09]} 24. Rg1 {[%clk 0:00:37]}  Qe4 {[%clk 0:00:58]} 25. Qe3 {[%clk 0:00:15]}  Qxe3 {[%clk 0:00:49]} 26. Bxe3 {[%clk 0:00:15]}  e5 {[%clk 0:00:47]} 27. f3 {[%clk 0:00:15]}  a5 {[%clk 0:00:31]} 28. Rd1 {[%clk 0:00:12]}  e4 {[%clk 0:00:30]} 29. fxe4 {[%clk 0:00:11]}  Bxe4 {[%clk 0:00:26]} 30. Kg1 {[%clk 0:00:11]}  a4 {[%clk 0:00:23]} 31. Bd4 {[%clk 0:00:11]}  h5 {[%clk 0:00:18]} 32. Bc3 {[%clk 0:00:11]}  h4 {[%clk 0:00:14]} 33. h3 {[%clk 0:00:11]}  g5 {[%clk 0:00:13]} 34. Rd4 {[%clk 0:00:10]}  a3 {[%clk 0:00:11]} 35. bxa3 {[%clk 0:00:09]}  Kf7 {[%clk 0:00:10]} 36. a4 {[%clk 0:00:09]}  Rb8 {[%clk 0:00:08]} 37. a5 {[%clk 0:00:05]}  Rb1+ {[%clk 0:00:07]} 38. Kf2 {[%clk 0:00:05]}  Rc1 {[%clk 0:00:07]} 39. Bd2 {[%clk 0:00:06]}  Rc2 {[%clk 0:00:07]} 40. a4 {[%clk 0:00:04]}  Rb2 {[%clk 0:00:04]} 41. a6 {[%clk 0:00:04]}  Rb8 {[%clk 0:00:04]} 42. Rb4 {[%clk 0:00:03]}  Ra8 {[%clk 0:00:03]} 43. Rb7+ {[%clk 0:00:03]}  Ke6 {[%clk 0:00:03]} 44. a7 {[%clk 0:00:04]}  d4 {[%clk 0:00:03]} 45. Ba5 {[%clk 0:00:04]}  Kd5 {[%clk 0:00:02]} 46. Bb6 {[%clk 0:00:05]}  d3 {[%clk 0:00:02]} 47. Rb8 {[%clk 0:00:05]}  d2 {[%clk 0:00:02]} 48. Rxa8 {[%clk 0:00:05]} 1-0


[Site "https://www.chess.com"]

[Event "Titled Tuesday Blitz June 14 Early 2022"]
[White "Kobalia, Mikhail"]
[Black "Svane, Rasmus"]
[WhiteFideId "4119150"]
[BlackFideId "4657101"]
[WhiteElo "2667"]
[BlackElo "2674"]
[Result "1/2-1/2"]
[Round "05"]
[TimeControl "180+1"]
[Date "2022.06.14"]
[WhiteClock "0:00:28"]
[BlackClock "0:00:07"]

1. e4 {[%clk 0:03:00]}  c6 {[%clk 0:02:53]} 2. d4 {[%clk 0:03:00]}  d5 {[%clk 0:02:54]} 3. exd5 {[%clk 0:03:01]}  cxd5 {[%clk 0:02:54]} 4. Bd3 {[%clk 0:03:02]}  Nc6 {[%clk 0:02:54]} 5. c3 {[%clk 0:03:02]}  Nf6 {[%clk 0:02:54]} 6. h3 {[%clk 0:03:00]}  e5 {[%clk 0:02:54]} 7. dxe5 {[%clk 0:03:00]}  Nxe5 {[%clk 0:02:55]} 8. Nf3 {[%clk 0:03:01]}  Nxd3+ {[%clk 0:02:55]} 9. Qxd3 {[%clk 0:03:00]}  Bd6 {[%clk 0:02:56]} 10. O-O {[%clk 0:02:57]}  O-O {[%clk 0:02:57]} 11. Bg5 {[%clk 0:02:57]}  h6 {[%clk 0:02:56]} 12. Bh4 {[%clk 0:02:57]}  g5 {[%clk 0:02:52]} 13. Bg3 {[%clk 0:02:57]}  Bxg3 {[%clk 0:02:52]} 14. fxg3 {[%clk 0:02:57]}  g4 {[%clk 0:02:53]} 15. hxg4 {[%clk 0:02:52]}  Nxg4 {[%clk 0:02:54]} 16. Nbd2 {[%clk 0:02:45]}  Re8 {[%clk 0:02:54]} 17. Rae1 {[%clk 0:02:44]}  Qb6+ {[%clk 0:02:49]} 18. Qd4 {[%clk 0:02:37]}  Qxd4+ {[%clk 0:01:50]} 19. Nxd4 {[%clk 0:02:38]}  Bd7 {[%clk 0:01:51]} 20. N2f3 {[%clk 0:02:38]}  Rxe1 {[%clk 0:01:40]} 21. Rxe1 {[%clk 0:02:37]}  Re8 {[%clk 0:01:40]} 22. Rxe8+ {[%clk 0:02:24]}  Bxe8 {[%clk 0:01:41]} 23. Nh2 {[%clk 0:02:24]}  Ne3 {[%clk 0:01:36]} 24. Nf1 {[%clk 0:02:21]}  Nd1 {[%clk 0:01:34]} 25. Nf5 {[%clk 0:02:14]}  Nxb2 {[%clk 0:01:11]} 26. N1e3 {[%clk 0:02:10]}  Bc6 {[%clk 0:00:57]} 27. Ne7+ {[%clk 0:02:10]}  Kf8 {[%clk 0:00:55]} 28. N7xd5 {[%clk 0:02:09]}  Nc4 {[%clk 0:00:53]} 29. Kf2 {[%clk 0:02:07]}  Nd2 {[%clk 0:00:39]} 30. Ke2 {[%clk 0:01:57]}  Ne4 {[%clk 0:00:39]} 31. g4 {[%clk 0:01:58]}  Kg7 {[%clk 0:00:37]} 32. Kd3 {[%clk 0:01:57]}  Bxd5 {[%clk 0:00:35]} 33. Nxd5 {[%clk 0:01:57]}  Nf2+ {[%clk 0:00:35]} 34. Kd4 {[%clk 0:01:52]}  Nxg4 {[%clk 0:00:36]} 35. Ne7 {[%clk 0:01:52]}  Kf6 {[%clk 0:00:33]} 36. Nc8 {[%clk 0:01:51]}  Kg5 {[%clk 0:00:23]} 37. Nd6 {[%clk 0:01:46]}  Kf4 {[%clk 0:00:17]} 38. Nxb7 {[%clk 0:01:42]}  Kg3 {[%clk 0:00:15]} 39. c4 {[%clk 0:01:43]}  Kxg2 {[%clk 0:00:15]} 40. c5 {[%clk 0:01:43]}  Nf6 {[%clk 0:00:14]} 41. Nd6 {[%clk 0:01:41]}  Nd7 {[%clk 0:00:09]} 42. c6 {[%clk 0:01:41]}  Nb6 {[%clk 0:00:09]} 43. Nxf7 {[%clk 0:01:25]}  h5 {[%clk 0:00:08]} 44. Kc5 {[%clk 0:01:23]}  Na8 {[%clk 0:00:06]} 45. Kd6 {[%clk 0:01:22]}  h4 {[%clk 0:00:06]} 46. Ng5 {[%clk 0:01:21]}  Kg3 {[%clk 0:00:06]} 47. a4 {[%clk 0:01:13]}  Kg4 {[%clk 0:00:06]} 48. Ne4 {[%clk 0:01:13]}  Kf3 {[%clk 0:00:06]} 49. Ng5+ {[%clk 0:01:12]}  Kg4 {[%clk 0:00:06]} 50. Ne4 {[%clk 0:01:04]}  Kf4 {[%clk 0:00:06]} 51. Nf2 {[%clk 0:01:03]}  Kg3 {[%clk 0:00:06]} 52. Ne4+ {[%clk 0:01:03]}  Kf4 {[%clk 0:00:07]} 53. Nf2 {[%clk 0:00:34]}  Kg3 {[%clk 0:00:06]} 54. Ne4+ {[%clk 0:00:28]}  Kf4 {[%clk 0:00:07]} 1/2-1/2


[Site "https://www.chess.com"]

[Event "Titled Tuesday Blitz June 14 Early 2022"]
[White "Lewtak, Damian"]
[Black "Bharath Subramaniyam H"]
[WhiteFideId "1141724"]
[BlackFideId "46634827"]
[WhiteElo "2379"]
[BlackElo "2242"]
[Result "0-1"]
[Round "05"]
[TimeControl "180+1"]
[Date "2022.06.14"]
[WhiteClock "0:00:03"]
[BlackClock "0:00:11"]

1. e4 {[%clk 0:03:00]}  c5 {[%clk 0:02:59]} 2. Nf3 {[%clk 0:02:59]}  e6 {[%clk 0:02:58]} 3. b3 {[%clk 0:02:55]}  b6 {[%clk 0:02:57]} 4. Bd3 {[%clk 0:02:51]}  Bb7 {[%clk 0:02:57]} 5. O-O {[%clk 0:02:48]}  Nc6 {[%clk 0:02:57]} 6. Bb2 {[%clk 0:02:45]}  Nge7 {[%clk 0:02:57]} 7. c3 {[%clk 0:02:40]}  Ng6 {[%clk 0:02:57]} 8. Bc2 {[%clk 0:02:40]}  Be7 {[%clk 0:02:56]} 9. a3 {[%clk 0:02:37]}  O-O {[%clk 0:02:55]} 10. d4 {[%clk 0:02:38]}  cxd4 {[%clk 0:02:56]} 11. cxd4 {[%clk 0:02:37]}  d5 {[%clk 0:02:56]} 12. e5 {[%clk 0:02:38]}  Ba6 {[%clk 0:02:53]} 13. Re1 {[%clk 0:02:36]}  Rc8 {[%clk 0:02:53]} 14. Nbd2 {[%clk 0:02:26]}  Nf4 {[%clk 0:02:51]} 15. Nf1 {[%clk 0:02:23]}  Na5 {[%clk 0:02:46]} 16. Ng3 {[%clk 0:02:18]}  Qd7 {[%clk 0:02:32]} 17. Qd2 {[%clk 0:02:10]}  Nd3 {[%clk 0:02:15]} 18. Bxd3 {[%clk 0:01:46]}  Nxb3 {[%clk 0:02:14]} 19. Qd1 {[%clk 0:01:46]}  Nxa1 {[%clk 0:02:10]} 20. Bxa6 {[%clk 0:01:40]}  Nc2 {[%clk 0:02:10]} 21. Bxc8 {[%clk 0:01:38]}  Rxc8 {[%clk 0:02:04]} 22. Rf1 {[%clk 0:01:27]}  Bxa3 {[%clk 0:01:57]} 23. Bxa3 {[%clk 0:01:21]}  Nxa3 {[%clk 0:01:58]} 24. Nh5 {[%clk 0:01:21]}  h6 {[%clk 0:01:40]} 25. Nd2 {[%clk 0:01:17]}  Qe7 {[%clk 0:01:30]} 26. f4 {[%clk 0:00:48]}  Qh4 {[%clk 0:01:26]} 27. Ng3 {[%clk 0:00:32]}  Nc2 {[%clk 0:01:23]} 28. Qc1 {[%clk 0:00:25]}  Qd8 {[%clk 0:01:20]} 29. Qb2 {[%clk 0:00:21]}  a5 {[%clk 0:01:15]} 30. Rc1 {[%clk 0:00:20]}  Nb4 {[%clk 0:01:11]} 31. Rxc8 {[%clk 0:00:20]}  Qxc8 {[%clk 0:01:12]} 32. h3 {[%clk 0:00:20]}  Qc2 {[%clk 0:01:02]} 33. Qxc2 {[%clk 0:00:18]}  Nxc2 {[%clk 0:01:03]} 34. Ne2 {[%clk 0:00:17]}  b5 {[%clk 0:00:57]} 35. Kf2 {[%clk 0:00:16]}  b4 {[%clk 0:00:53]} 36. Nc1 {[%clk 0:00:14]}  a4 {[%clk 0:00:52]} 37. Ke2 {[%clk 0:00:14]}  Nxd4+ {[%clk 0:00:36]} 38. Kd3 {[%clk 0:00:14]}  Nc6 {[%clk 0:00:28]} 39. Ne2 {[%clk 0:00:13]}  Kf8 {[%clk 0:00:20]} 40. Nd4 {[%clk 0:00:13]}  Na5 {[%clk 0:00:21]} 41. Nc2 {[%clk 0:00:10]}  Nc6 {[%clk 0:00:20]} 42. Nf3 {[%clk 0:00:10]}  b3 {[%clk 0:00:19]} 43. Na3 {[%clk 0:00:10]}  Ke7 {[%clk 0:00:17]} 44. Nd4 {[%clk 0:00:10]}  Nb4+ {[%clk 0:00:17]} 45. Kc3 {[%clk 0:00:10]}  Na2+ {[%clk 0:00:18]} 46. Kd3 {[%clk 0:00:10]}  Kd7 {[%clk 0:00:15]} 47. Ndb5 {[%clk 0:00:09]}  Nb4+ {[%clk 0:00:15]} 48. Kd4 {[%clk 0:00:08]}  Nc2+ {[%clk 0:00:14]} 49. Kc3 {[%clk 0:00:08]}  Ne3 {[%clk 0:00:13]} 50. g3 {[%clk 0:00:08]}  Nf1 {[%clk 0:00:12]} 51. g4 {[%clk 0:00:08]}  Ng3 {[%clk 0:00:13]} 52. Kb4 {[%clk 0:00:08]}  Ne2 {[%clk 0:00:13]} 53. Kxa4 {[%clk 0:00:08]}  Nxf4 {[%clk 0:00:12]} 54. Nd4 {[%clk 0:00:07]}  b2 {[%clk 0:00:12]} 55. Kb3 {[%clk 0:00:06]}  Nxh3 {[%clk 0:00:12]} 56. Kxb2 {[%clk 0:00:06]}  Nf2 {[%clk 0:00:13]} 57. g5 {[%clk 0:00:03]}  hxg5 {[%clk 0:00:13]} 58. Kc3 {[%clk 0:00:04]}  g4 {[%clk 0:00:09]} 59. Kd2 {[%clk 0:00:04]}  g3 {[%clk 0:00:09]} 60. Ke3 {[%clk 0:00:04]}  Ng4+ {[%clk 0:00:10]} 61. Kf3 {[%clk 0:00:04]}  Nxe5+ {[%clk 0:00:10]} 62. Kxg3 {[%clk 0:00:05]}  Ke7 {[%clk 0:00:10]} 63. Kf4 {[%clk 0:00:05]}  Nd3+ {[%clk 0:00:10]} 64. Ke3 {[%clk 0:00:05]}  Nc5 {[%clk 0:00:11]} 65. Nac2 {[%clk 0:00:05]}  g6 {[%clk 0:00:11]} 66. Kf4 {[%clk 0:00:05]}  f6 {[%clk 0:00:11]} 67. Ke3 {[%clk 0:00:04]}  e5 {[%clk 0:00:11]} 68. Nc6+ {[%clk 0:00:05]}  Kd6 {[%clk 0:00:11]} 69. N6b4 {[%clk 0:00:06]}  f5 {[%clk 0:00:12]} 70. Kf3 {[%clk 0:00:06]}  d4 {[%clk 0:00:12]} 71. Na2 {[%clk 0:00:04]}  e4+ {[%clk 0:00:12]} 72. Kf4 {[%clk 0:00:04]}  Ne6+ {[%clk 0:00:11]} 73. Kg3 {[%clk 0:00:04]}  d3 {[%clk 0:00:11]} 74. Ne1 {[%clk 0:00:03]}  d2 {[%clk 0:00:11]} 0-1


[Site "https://www.chess.com"]

[Event "Titled Tuesday Blitz June 14 Early 2022"]
[White "Livaic, Leon"]
[Black "Taspinar, Yanki"]
[WhiteFideId "14531534"]
[BlackFideId "34561188"]
[WhiteElo "2540"]
[BlackElo "1518"]
[Result "1-0"]
[Round "05"]
[TimeControl "180+1"]
[Date "2022.06.14"]
[WhiteClock "0:00:13"]
[BlackClock "0:00:05"]

1. d4 {[%clk 0:03:00]}  d5 {[%clk 0:02:58]} 2. c4 {[%clk 0:03:01]}  e6 {[%clk 0:02:59]} 3. Nc3 {[%clk 0:03:01]}  c6 {[%clk 0:02:58]} 4. Nf3 {[%clk 0:03:00]}  dxc4 {[%clk 0:02:58]} 5. e3 {[%clk 0:02:59]}  b5 {[%clk 0:02:58]} 6. a4 {[%clk 0:03:00]}  Bb4 {[%clk 0:02:57]} 7. Bd2 {[%clk 0:03:00]}  a5 {[%clk 0:02:57]} 8. axb5 {[%clk 0:03:00]}  Bxc3 {[%clk 0:02:56]} 9. Bxc3 {[%clk 0:03:01]}  cxb5 {[%clk 0:02:56]} 10. b3 {[%clk 0:03:02]}  Bb7 {[%clk 0:02:56]} 11. bxc4 {[%clk 0:03:02]}  b4 {[%clk 0:02:57]} 12. Bb2 {[%clk 0:03:03]}  Nf6 {[%clk 0:02:57]} 13. c5 {[%clk 0:03:03]}  O-O {[%clk 0:02:55]} 14. Bb5 {[%clk 0:03:04]}  Bc6 {[%clk 0:02:51]} 15. Ba4 {[%clk 0:03:04]}  Qc7 {[%clk 0:02:46]} 16. O-O {[%clk 0:02:59]}  Bxa4 {[%clk 0:02:36]} 17. Qxa4 {[%clk 0:02:59]}  Nc6 {[%clk 0:02:32]} 18. Rfd1 {[%clk 0:02:46]}  Rfd8 {[%clk 0:02:22]} 19. h3 {[%clk 0:02:46]}  h6 {[%clk 0:02:16]} 20. Nd2 {[%clk 0:02:43]}  e5 {[%clk 0:02:10]} 21. Nc4 {[%clk 0:02:43]}  exd4 {[%clk 0:02:09]} 22. exd4 {[%clk 0:02:34]}  Nd5 {[%clk 0:02:09]} 23. Nd6 {[%clk 0:02:30]}  Nce7 {[%clk 0:01:50]} 24. Re1 {[%clk 0:02:16]}  Ng6 {[%clk 0:01:48]} 25. Re4 {[%clk 0:01:58]}  Nf6 {[%clk 0:01:24]} 26. Re3 {[%clk 0:01:51]}  Nf4 {[%clk 0:01:10]} 27. Rae1 {[%clk 0:01:42]}  N4d5 {[%clk 0:01:10]} 28. Re5 {[%clk 0:01:38]}  Rxd6 {[%clk 0:01:10]} 29. cxd6 {[%clk 0:01:38]}  Qxd6 {[%clk 0:01:11]} 30. Rc1 {[%clk 0:01:06]}  Nf4 {[%clk 0:01:05]} 31. Rc6 {[%clk 0:00:59]}  Qd7 {[%clk 0:00:52]} 32. Rec5 {[%clk 0:00:47]}  Qe7 {[%clk 0:00:19]} 33. Rc8+ {[%clk 0:00:37]}  Rxc8 {[%clk 0:00:19]} 34. Rxc8+ {[%clk 0:00:38]}  Kh7 {[%clk 0:00:20]} 35. Qc2+ {[%clk 0:00:39]}  g6 {[%clk 0:00:20]} 36. Qc7 {[%clk 0:00:24]}  Qe1+ {[%clk 0:00:13]} 37. Kh2 {[%clk 0:00:24]}  Qe6 {[%clk 0:00:06]} 38. Qxf4 {[%clk 0:00:22]}  Nd5 {[%clk 0:00:05]} 39. Qb8 {[%clk 0:00:21]}  g5 {[%clk 0:00:05]} 40. Rh8+ {[%clk 0:00:20]}  Kg6 {[%clk 0:00:06]} 41. Qg8+ {[%clk 0:00:20]}  Kf5 {[%clk 0:00:06]} 42. Qh7+ {[%clk 0:00:20]}  Qg6 {[%clk 0:00:06]} 43. Qxg6+ {[%clk 0:00:19]}  Kxg6 {[%clk 0:00:07]} 44. Ra8 {[%clk 0:00:19]}  Kf5 {[%clk 0:00:07]} 45. Rxa5 {[%clk 0:00:19]}  Ke4 {[%clk 0:00:08]} 46. Kg3 {[%clk 0:00:16]}  Nf4 {[%clk 0:00:07]} 47. Rb5 {[%clk 0:00:15]}  Nd3 {[%clk 0:00:06]} 48. d5 {[%clk 0:00:13]}  f5 {[%clk 0:00:02]} 49. d6 {[%clk 0:00:13]}  f4+ {[%clk 0:00:03]} 50. Kh2 {[%clk 0:00:13]}  Nxb2 {[%clk 0:00:01]} 51. d7 {[%clk 0:00:13]}  Nd3 {[%clk 0:00:02]} 52. d8=Q {[%clk 0:00:14]}  Nxf2 {[%clk 0:00:03]} 53. Qd5+ {[%clk 0:00:12]}  Ke3 {[%clk 0:00:04]} 54. Rxb4 {[%clk 0:00:12]}  Nd3 {[%clk 0:00:03]} 55. Rb3 {[%clk 0:00:12]}  Kf2 {[%clk 0:00:04]} 56. Qxd3 {[%clk 0:00:12]}  g4 {[%clk 0:00:05]} 57. Qd2+ {[%clk 0:00:12]}  Kf1 {[%clk 0:00:05]} 58. Rb1# {[%clk 0:00:13]} 1-0


[Site "https://www.chess.com"]